bitfinex/quotes_ETHUSD_20251118
["timestamp","ask_amount","ask_price","bid_price","bid_amount"]
[1763436917673,0.4645,2976.0,2974.2,0.405504]
[1763436917890,0.4645,2976.0,2974.2,0.91272648]
[1763436918292,0.4645,2976.0,2974.4,0.405504]
[1763436918603,0.4645,2976.0,2974.4,0.43912422]
[1763436918802,0.4645,2976.0,2974.4,0.4955]
[1763436919017,0.197,2978.3,2974.4,0.4955]
[1763436919018,0.4895,2976.6,2974.5,0.405504]
[1763436919216,0.4895,2976.6,2974.7,0.405504]
[1763436919513,0.4895,2976.6,2974.9,0.405504]
[1763436919713,0.4895,2976.6,2975.4,0.590304]
[1763436919892,0.6865,2977.1,2975.4,1.085804]
[1763436920338,0.4895,2976.5,2975.4,0.405504]
[1763436920535,0.1868,2976.3,2975.4,0.405504]
[1763436920826,0.4895,2976.2,2974.5,0.4955]
[1763436920995,0.4895,2976.2,2974.6,0.43912196]
[1763436921548,0.4895,2976.2,2974.6,0.93462196]
[1763436921755,0.1868,2976.3,2974.1,0.1866]
[1763436922034,0.4915,2976.1,2974.2,0.52912248]
[1763436922236,0.4915,2976.1,2974.4,0.405504]
[1763436922538,0.4915,2976.1,2974.6,0.405504]
[1763436922747,0.4915,2976.1,2974.3,0.03362135]
[1763436922748,0.002,2976.1,2974.3,0.03362135]
[1763436922892,0.002,2976.1,2974.1,0.1866]
[1763436922893,0.4915,2975.5,2974.1,0.1866]
[1763436923094,0.4915,2975.5,2973.7,0.4955]
[1763436923095,0.4915,2975.5,2973.7,0.52912814]
[1763436923506,0.002,2975.5,2973.8,0.033627]
[1763436923712,0.002,2975.5,2973.9,0.405504]
[1763436923926,0.002,2975.5,2974.1,0.405504]
[1763436924237,0.002,2975.5,2973.9,0.987]
[1763436924238,0.002,2975.5,2974.3,0.405504]
[1763436924396,0.002,2975.5,2974.5,0.405504]
[1763436924593,0.002,2975.5,2974.7,0.405504]
[1763436925091,0.002,2975.5,2974.9,0.405504]
[1763436925537,0.002,2975.5,2974.9,0.93461857]
[1763436925740,0.002,2976.1,2975.1,0.405504]
[1763436925894,0.002,2976.1,2975.3,0.405504]
[1763436926093,0.002,2976.1,2975.2,0.52911118]
[1763436926094,0.002,2976.1,2975.5,0.405504]
[1763436926294,0.002,2976.1,2975.7,0.405504]
[1763436926841,0.002,2976.1,2975.7,0.901004]
[1763436927004,0.002,2976.1,2975.2,0.405504]
[1763436927199,0.4915,2976.1,2974.6,0.1848]
[1763436927599,0.4895,2976.0,2974.6,0.1848]
[1763436927836,0.4895,2975.7,2974.2,0.1848]
[1763436928134,0.002,2976.1,2974.3,0.03362135]
[1763436928427,0.002,2976.1,2974.4,0.405504]
[1763436928594,0.002,2976.1,2974.6,0.405504]
[1763436928795,0.002,2976.1,2974.6,0.03361796]
[1763436928995,0.002,2976.1,2974.4,0.03362022]
[1763436929404,0.002,2976.1,2974.5,0.4955]
[1763436929596,0.002,2976.1,2974.6,0.405504]
[1763436930031,0.002,2976.1,2974.3,0.405504]
[1763436930233,0.002,2976.1,2974.7,0.405504]
[1763436930840,0.002,2976.1,2974.5,0.405504]
[1763436930993,0.002,2976.1,2974.9,0.405504]
[1763436931193,0.002,2976.1,2975.0,0.405504]
[1763436931606,0.002,2976.1,2975.1,0.405504]
[1763436931804,0.002,2976.1,2975.3,0.405504]
[1763436932009,0.002,2976.1,2975.5,0.405504]
[1763436932212,0.002,2976.1,2975.5,0.03360779]
[1763436932504,0.002,2976.1,2973.2,0.4895]
[1763436932505,0.002,2976.1,2975.2,0.405504]
[1763436932831,0.4895,2975.7,2974.5,0.001]
[1763436933234,0.1868,2975.6,2974.5,0.03461909]
[1763436933454,0.1868,2975.6,2974.5,0.001]
[1763436933596,0.4895,2975.5,2974.5,0.001]
[1763436934438,0.1868,2974.6,2974.5,0.001]
[1763436934945,0.6763,2974.6,2974.5,0.001]
[1763436935264,0.6763,2974.6,2974.3,0.001]
[1763436935559,0.4895,2974.5,2974.3,0.001]
[1763436936176,0.1868,2974.6,2974.3,0.001]
[1763436936367,0.1868,2974.6,2972.0,0.03364737]
[1763436936368,0.4628,2974.4,2972.0,0.03364737]
[1763436936672,0.4628,2974.4,2972.1,0.4769]
[1763436937224,0.4628,2974.4,2972.2,0.03364511]
[1763436937463,0.4628,2974.4,2972.3,0.4769]
[1763436938023,0.4628,2974.4,2971.9,0.0401]
[1763436938247,0.4628,2974.4,2971.6,0.4769]
[1763436938451,0.4628,2974.4,2971.7,0.03365077]
[1763436938825,0.4628,2974.4,2971.8,0.882404]
[1763436939259,0.4628,2974.4,2971.0,0.001]
[1763436939260,0.405504,2974.3,2971.0,0.001]
[1763436939669,2.01566384,2974.0,2971.0,0.001]
[1763436940038,0.4628,2973.9,2971.0,0.0346587]
[1763436940241,0.405504,2973.8,2971.0,0.001]
[1763436940452,0.405504,2973.6,2971.0,0.001]
[1763436940641,0.4628,2973.7,2971.0,0.001]
[1763436940836,0.1843,2973.5,2971.0,0.001]
[1763436941254,0.4628,2973.4,2971.0,0.5115587]
[1763436941494,0.4628,2973.4,2971.1,0.405504]
[1763436941893,0.4628,2973.4,2971.3,0.405504]
[1763436942077,0.4628,2973.4,2971.5,0.405504]
[1763436942407,0.4628,2973.4,2971.4,0.03365416]
[1763436942408,0.4628,2973.4,2971.7,0.405504]
[1763436942726,0.4628,2973.4,2971.4,0.4769]
[1763436942727,0.4628,2973.4,2971.9,0.405504]
[1763436942874,0.4628,2973.8,2971.9,0.0336485]
[1763436943075,0.4628,2973.8,2972.0,0.882404]
[1763436943270,0.4628,2974.4,2972.1,0.03364624]
[1763436943498,0.4628,2974.4,2972.2,0.405504]
[1763436943976,0.4628,2974.4,2972.4,0.405504]
[1763436944201,0.1868,2975.6,2972.3,0.69294397]
[1763436944202,0.1868,2975.6,2972.6,0.405504]
[1763436944369,0.1868,2975.6,2972.8,0.405504]
[1763436944370,0.6496,2974.6,2972.8,0.405504]
[1763436944575,0.6496,2974.6,2973.0,0.405504]
[1763436944890,0.6496,2974.6,2973.1,0.03363492]
[1763436945099,0.6496,2974.6,2973.1,0.51053492]
[1763436945276,0.6496,2974.6,2973.1,0.4769]
[1763436946083,0.1868,2975.6,2973.1,0.4769]
[1763436946084,0.4628,2975.3,2973.2,0.405504]
[1763436946283,0.1868,2975.6,2973.4,0.405504]
[1763436946499,0.1868,2975.6,2973.6,0.405504]
[1763436946710,0.1868,2975.6,2973.8,0.405504]
[1763436946903,0.1868,2975.6,2973.9,0.03362587]
[1763436947100,0.1868,2975.6,2974.0,0.405504]
[1763436947477,0.1868,2975.6,2974.2,0.405504]
[1763436947817,0.1868,2975.6,2974.1,0.51052361]
[1763436947818,0.002,2975.8,2974.4,0.405504]
[1763436948022,0.002,2975.8,2974.6,0.405504]
[1763436948222,0.002,2975.8,2974.8,0.405504]
[1763436948429,0.52874616,2975.5,2974.9,0.03361457]
[1763436948580,0.52874616,2975.5,2974.5,0.1824]
[1763436948783,0.52874616,2975.5,2974.6,0.91602196]
[1763436949199,0.52874616,2975.5,2974.8,0.405504]
[1763436949701,0.52874616,2975.5,2975.0,0.405504]
[1763436950211,0.52874616,2975.5,2975.2,0.405504]
[1763436950418,0.52874616,2975.5,2974.5,0.1824]
[1763436950601,0.52874616,2975.5,2975.3,0.405504]
[1763436951041,0.52874616,2975.5,2975.4,0.882404]
[1763436951541,0.00204616,2975.5,2975.4,0.91601292]
[1763436951711,0.002,2976.4,2975.5,0.405504]
[1763436951938,0.6471,2978.3,2975.7,0.405504]
[1763436952122,0.6471,2978.3,2975.9,0.405504]
[1763436952338,0.6471,2978.3,2976.1,0.405504]
[1763436952555,0.1843,2980.6,2976.3,0.405504]
[1763436952556,0.1843,2978.8,2976.3,0.405504]
[1763436952703,0.1843,2978.8,2976.5,0.405504]
[1763436953039,0.4628,2978.8,2976.7,0.405504]
[1763436953244,0.4628,2978.8,2976.9,0.405504]
[1763436953445,0.4628,2978.8,2977.1,0.405504]
[1763436953599,0.1843,2980.6,2977.3,0.405504]
[1763436953600,0.4628,2979.3,2977.3,0.405504]
[1763436953801,0.6471,2979.2,2977.5,0.405504]
[1763436954041,0.6471,2979.2,2977.7,0.405504]
[1763436954207,0.6471,2979.2,2977.6,0.03358409]
[1763436954208,0.6471,2979.2,2977.9,0.405504]
[1763436954415,0.6471,2979.2,2978.1,0.405504]
[1763436954631,0.6471,2979.2,2977.5,0.0029]
[1763436954814,0.1843,2980.6,2977.5,0.0029]
[1763436955014,0.4628,2979.9,2977.5,0.0029]
[1763436955202,0.4628,2979.9,2977.7,0.405504]
[1763436955408,0.4628,2979.9,2977.9,0.405504]
[1763436955605,0.4628,2979.9,2976.3,0.1777]
[1763436955606,0.4628,2979.9,2977.7,0.405504]
[1763436955947,0.4628,2979.9,2977.8,0.03358183]
[1763436956307,0.4628,2979.9,2977.7,0.413104]
[1763436956308,0.4628,2979.9,2977.7,0.0076]
[1763436956905,0.4628,2979.9,2977.9,0.405504]
[1763436957242,0.4628,2979.9,2977.7,0.0076]
[1763436957243,0.4628,2979.9,2977.5,0.405504]
[1763436957544,0.4628,2979.9,2977.6,0.2171]
[1763436957762,0.4628,2979.9,2977.1,0.03358973]
[1763436958109,0.4628,2979.9,2977.2,0.4112]
[1763436958329,0.4628,2979.9,2977.3,0.43909147]
[1763436958732,0.4628,2979.9,2977.5,0.405504]
[1763436959706,0.405504,2979.8,2977.0,0.1154]
[1763436959903,0.405504,2979.8,2977.0,0.14899086]
[1763436960106,0.4628,2979.7,2977.0,0.1154]
[1763436960383,0.405504,2979.6,2977.0,0.1154]
[1763436960640,0.405504,2979.6,2974.7,2.92622631]
[1763436960641,0.1569,2977.1,2975.7,0.1824]
[1763436961030,0.6197,2977.1,2975.8,0.0336044]
[1763436961237,0.1843,2977.9,2975.8,0.0422044]
[1763436961439,0.1569,2978.4,2977.0,0.0624]
[1763436961745,0.1843,2980.6,2977.1,0.03358973]
[1763436961746,0.4628,2978.8,2977.1,0.03358973]
[1763436961951,0.4628,2978.8,2977.2,0.0335886]
[1763436962251,0.4628,2978.8,2975.9,0.405504]
[1763436962419,0.4628,2978.8,2976.1,0.405504]
[1763436962823,0.4628,2978.8,2976.3,0.405504]
[1763436963011,0.4628,2978.8,2976.1,0.0626]
[1763436963206,0.405504,2978.7,2976.1,0.0626]
[1763436963412,0.4628,2978.8,2975.8,0.0957044]
[1763436963637,0.4628,2978.7,2975.9,0.03360327]
[1763436964182,0.4628,2978.7,2975.7,0.1824]
[1763436964183,0.4628,2979.3,2976.3,3.948504]
[1763436964379,0.4628,2979.3,2976.1,0.405504]
[1763436964380,0.4628,2979.3,2976.5,0.405504]
[1763436964562,0.4628,2979.2,2976.7,0.405504]
[1763436964737,0.4628,2979.2,2976.3,0.46516127]
[1763436964738,0.4628,2979.2,2976.5,0.4769]
[1763436964943,0.4628,2979.2,2976.6,0.03359537]
[1763436965140,0.405504,2979.1,2976.3,0.0624]
[1763436965374,0.405504,2979.1,2976.4,0.4769]
[1763436965584,0.4628,2979.0,2976.5,0.0335965]
[1763436965954,0.4628,2979.0,2976.6,0.4738]
[1763436966266,0.4628,2979.0,2976.3,0.0624]
[1763436966580,0.4628,2979.0,2976.5,0.405504]
[1763436966764,0.405504,2978.9,2975.9,0.4738]
[1763436966966,1.31249664,2978.9,2975.7,0.1824]
[1763436967186,1.43869704,2978.8,2975.4,0.405504]
[1763436967387,0.405504,2978.7,2975.6,0.405504]
[1763436967544,0.4981,2978.7,2975.8,0.405504]
[1763436967907,0.4981,2979.2,2976.2,3.948504]
[1763436968081,0.2179044,2980.9,2976.5,0.90699264]
[1763436968082,0.1843,2980.9,2976.5,0.90699264]
[1763436968263,0.4981,2980.4,2976.8,3.948504]
[1763436968460,0.4981,2980.4,2977.0,0.405504]
[1763436968648,0.4981,2980.4,2977.2,0.405504]
[1763436968856,0.4981,2980.4,2977.4,0.405504]
[1763436969058,0.4981,2980.4,2977.6,0.405504]
[1763436969245,0.4981,2980.4,2977.8,0.405504]
[1763436969448,0.4981,2980.4,2978.0,0.405504]
[1763436969658,0.4981,2980.4,2978.2,0.405504]
[1763436969858,0.002,2979.2,2978.4,0.405504]
[1763436970085,0.002,2979.2,2978.3,0.0335762]
[1763436970086,0.002,2979.2,2977.9,0.20835746]
[1763436970389,0.1802,2979.1,2978.0,0.0167582]
[1763436970584,0.002,2979.2,2977.1,0.0167582]
[1763436970893,0.6783,2979.1,2977.2,0.40276127]
[1763436971051,0.6783,2979.1,2977.3,0.01677116]
[1763436971246,0.4981,2979.0,2976.3,0.01677116]
[1763436972032,0.4981,2979.0,2976.1,1.6377426]
[1763436972181,0.002,2979.2,2976.5,0.405504]
[1763436972380,0.002,2979.2,2977.0,1.31249664]
[1763436972580,0.002,2979.2,2977.7,0.405504]
[1763436972834,0.6783,2979.1,2977.7,0.405504]
[1763436972983,0.6783,2979.1,2977.1,4.93868048]
[1763436972984,0.6783,2979.1,2977.8,0.01676159]
[1763436973182,0.6783,2979.1,2977.9,0.01676102]
[1763436973183,0.4981,2979.0,2977.9,0.01676102]
[1763436973502,0.1802,2979.1,2977.9,0.01676102]
[1763436973922,0.002,2979.2,2977.9,0.01676102]
[1763436974111,0.1802,2979.1,2977.9,0.01676102]
[1763436974283,0.002,2979.2,2977.6,0.01676102]
[1763436974485,0.6783,2979.1,2977.6,0.01676102]
[1763436974736,0.6783,2979.1,2977.1,3.3500986]
[1763436974883,0.6783,2979.1,2977.1,0.42387229]
[1763436974884,0.4981,2979.0,2977.1,0.42387229]
[1763436975079,0.4981,2979.0,2977.2,0.22517399]
[1763436975284,0.002,2979.2,2977.2,0.22517399]
[1763436975517,0.6783,2979.1,2977.2,0.22517399]
[1763436975920,0.1802,2979.1,2977.2,0.22517399]
[1763436976235,0.4981,2979.0,2977.2,0.22517399]
[1763436976598,0.002,2979.2,2977.3,0.405504]
[1763436976824,0.002,2979.2,2977.3,1.31249664]
[1763436977136,0.002,2979.2,2977.2,3.13462631]
[1763436977137,0.002,2979.5,2977.7,4.23872295]
[1763436977289,0.002,2979.5,2978.4,0.405504]
[1763436977491,0.4981,2979.4,2978.4,0.405504]
[1763436977788,0.4981,2979.4,2977.4,0.84747357]
[1763436977789,0.4981,2979.4,2978.1,0.42225149]
[1763436978013,0.002,2979.5,2978.1,0.62865149]
[1763436978218,0.5001,2979.5,2978.1,0.01674749]
[1763436978403,0.002,2979.5,2978.1,0.42225149]
[1763436978702,0.002,2979.5,2979.4,0.508704]
[1763436979005,0.002,2979.5,2979.4,0.405504]
[1763436979222,0.4904,2979.5,2977.6,2.92622631]
[1763436979424,0.4904,2979.5,2978.0,0.1032]
[1763436979740,0.4904,2979.5,2978.1,0.42225713]
[1763436979952,0.4904,2979.5,2977.7,0.20381926]
[1763436979953,0.002,2979.5,2977.7,0.20381926]
[1763436980142,0.002,2979.5,2977.8,6.46922631]
[1763436980343,0.002,2979.5,2978.0,2.92622631]
[1763436980498,0.002,2979.5,2977.6,4.11204692]
[1763436980499,0.4904,2979.5,2978.1,0.29262263]
[1763436980705,0.4904,2979.5,2977.4,0.4447123]
[1763436981225,0.4904,2979.5,2977.1,2.92622631]
[1763436981226,0.4904,2979.5,2977.1,0.90699264]
[1763436981430,0.002,2979.5,2977.1,0.90699264]
[1763436981737,0.002,2979.5,2978.0,0.90699264]
[1763436981935,0.002,2979.5,2978.2,2.92622631]
[1763436982136,0.002,2979.5,2978.1,0.405504]
[1763436982137,0.002,2979.5,2978.3,1.31249664]
[1763436982340,0.002,2979.5,2978.6,2.40372878]
[1763436982546,0.002,2979.5,2978.7,0.64587688]
[1763436982707,0.002,2979.5,2978.7,6.59260566]
[1763436983135,0.002,2979.5,2978.8,0.90699264]
[1763436983427,0.002,2979.5,2978.2,2.40372878]
[1763436983428,0.4884,2979.4,2978.2,2.40372878]
[1763436983625,0.002,2979.5,2978.0,0.1006]
[1763436983886,0.002,2979.5,2977.9,0.90699264]
[1763436983887,0.002,2979.5,2978.1,2.50432878]
[1763436984087,0.4884,2979.4,2978.0,2.40372878]
[1763436984368,0.4884,2979.4,2977.9,2.40372878]
[1763436984581,0.002,2979.5,2978.1,2.40372878]
[1763436984727,0.002,2979.5,2977.9,0.90699264]
[1763436984728,0.002,2979.5,2978.6,2.40372878]
[1763436985086,0.002,2979.5,2979.0,0.405504]
[1763436985661,0.002,2979.5,2979.2,0.405504]
[1763436985860,0.002,2979.5,2979.0,2.40372878]
[1763436986040,0.002,2979.5,2978.7,0.24037288]
[1763436986041,0.002,2979.5,2978.7,2.40372878]
[1763436986255,0.4884,2979.4,2978.2,2.40372878]
[1763436986455,0.4884,2979.4,2978.3,0.24037288]
[1763436986766,0.002,2979.5,2978.4,0.405504]
[1763436987264,0.002,2979.5,2978.6,0.405504]
[1763436987943,0.1904,2979.5,2978.5,0.405504]
[1763436988137,0.1904,2979.5,2978.4,0.405504]
[1763436988370,0.1904,2979.5,2978.5,0.30496057]
[1763436988941,0.002,2979.5,2978.5,0.30496057]
[1763436989164,0.002,2979.5,2978.6,0.405504]
[1763436989678,0.002,2979.5,2978.8,0.405504]
[1763436989969,0.002,2979.5,2978.8,2.80923278]
[1763436990127,0.002,2979.5,2979.0,0.405504]
[1763436990332,0.002,2979.5,2979.2,2.80923278]
[1763436990979,0.002,2979.5,2979.2,2.90983278]
[1763436991185,0.002,2979.5,2979.4,0.405504]
[1763436991340,0.002,2979.5,2979.4,2.80693249]
[1763436991544,0.002,2979.5,2979.4,3.19828574]
[1763436992039,0.002,2979.8,2979.4,0.79685725]
[1763436992242,0.002,2979.8,2979.7,2.80680789]
[1763436992738,0.002,2979.8,2979.7,0.506104]
[1763436992944,0.002,2979.8,2979.7,0.405504]
[1763436993144,0.002,2979.8,2979.7,2.80617154]
[1763436993373,0.002,2979.8,2979.7,0.405504]
[1763436993643,0.002,2979.8,2979.7,0.506104]
[1763436994047,0.002,2979.8,2979.7,0.74873703]
[1763436994452,0.002,2979.8,2979.7,0.405504]
[1763436994873,0.002,2979.8,2979.7,0.506104]
[1763436995073,0.002,2979.8,2979.7,0.405504]
[1763436995386,0.002,2979.8,2979.7,0.506104]
[1763436996646,0.002,2979.8,2979.7,1.41309664]
[1763436997008,0.00026916,2979.8,2979.7,3.7656626]
[1763436997157,0.00026916,2979.8,2979.7,0.83943629]
[1763436997359,0.00026916,2979.8,2979.7,0.94003629]
[1763436997546,0.6626,2982.0,2979.8,3.948504]
[1763436997743,0.1881,2983.2,2981.2,2.40723065]
[1763436998012,0.1881,2983.2,2981.9,0.405504]
[1763436998013,0.4783,2982.9,2981.9,0.405504]
[1763436998222,0.4783,2982.9,2981.8,2.40723065]
[1763436998223,0.1881,2983.2,2982.3,0.405504]
[1763436998427,0.6664,2983.2,2982.3,0.405504]
[1763436998916,0.4783,2983.0,2982.2,0.405504]
[1763436999099,0.4783,2983.0,2982.2,0.28127347]
[1763436999298,0.4783,2983.0,2981.9,2.40723065]
[1763436999810,0.4783,2983.0,2982.2,2.40723065]
[1763437000013,0.4783,2983.0,2982.1,2.40723065]
[1763437000515,0.1881,2983.2,2982.2,2.40723065]
[1763437000719,0.4783,2983.0,2982.2,2.40723065]
[1763437000914,0.4783,2983.0,2981.8,3.00903831]
[1763437000915,0.1881,2983.2,2982.0,2.40723065]
[1763437001211,0.1901,2983.1,2982.5,0.405504]
[1763437001412,0.6684,2983.1,2982.4,0.405504]
[1763437001779,0.002,2983.1,2982.6,0.405504]
[1763437001972,0.002,2983.1,2982.4,0.405504]
[1763437001973,0.002,2983.1,2982.8,0.405504]
[1763437002213,0.002,2983.1,2982.2,0.1352]
[1763437002214,0.002,2983.1,2982.3,1.04219264]
[1763437002410,0.002,2983.1,2982.8,0.405504]
[1763437002717,0.002,2983.1,2982.7,0.405504]
[1763437003104,0.002,2983.1,2982.5,0.405504]
[1763437003411,0.52913889,2983.1,2982.5,0.405504]
[1763437003717,0.52913889,2983.1,2982.7,1.31249664]
[1763437003913,0.52913889,2983.1,2982.8,0.37197273]
[1763437004278,0.52913889,2983.1,2982.9,0.4993]
[1763437004478,0.52913889,2983.1,2983.0,0.405504]
[1763437004912,0.52913889,2983.1,2983.0,1.81179664]
[1763437005212,0.52913889,2983.1,2983.0,1.31249664]
[1763437005414,0.52913889,2983.1,2983.0,1.313974]
[1763437005614,0.52913889,2983.1,2983.0,0.405504]
[1763437006221,0.002,2983.4,2983.1,0.405504]
[1763437006422,0.002,2983.7,2983.1,0.405504]
[1763437006594,0.4783,2985.2,2983.5,0.405504]
[1763437006805,0.002,2986.2,2984.3,3.28458027]
[1763437006806,0.6664,2986.0,2984.3,3.28458027]
[1763437006990,0.002,2986.2,2984.7,3.69008427]
[1763437007187,0.002,2986.2,2985.1,0.405504]
[1763437007388,0.002,2986.2,2985.0,0.90699264]
[1763437007389,0.002,2986.2,2985.5,0.405504]
[1763437007707,0.002,2986.2,2985.7,0.405504]
[1763437007909,0.002,2986.2,2985.1,3.00903831]
[1763437007910,0.002,2986.2,2985.8,1.325504]
[1763437008108,0.002,2986.2,2985.8,0.405504]
[1763437009912,0.002,2986.2,2985.5,2.37758763]
[1763437010115,0.4783,2987.7,2985.7,2.37758763]
[1763437010326,0.1881,2988.0,2986.0,0.405504]
[1763437010498,0.1881,2988.2,2986.0,0.405504]
[1763437010699,0.6664,2988.2,2986.0,3.69008427]
[1763437011027,0.6664,2988.2,2986.2,0.405504]
[1763437011234,0.1881,2988.2,2986.4,0.405504]
[1763437011524,0.04179344,2990.9,2986.4,0.405504]
[1763437011525,0.4783,2988.3,2986.4,0.405504]
[1763437011902,0.4783,2988.3,2986.1,0.405504]
[1763437012297,0.4783,2988.3,2985.9,0.405504]
[1763437012524,0.4783,2988.3,2985.9,2.78309163]
[1763437012824,0.1881,2988.5,2986.1,0.405504]
[1763437012825,0.4783,2988.2,2986.1,0.405504]
[1763437013444,0.4783,2988.2,2985.7,0.90699264]
[1763437013445,0.4783,2988.2,2985.7,0.405504]
[1763437013745,0.4783,2988.2,2985.6,0.23775876]
[1763437014115,0.4783,2988.2,2985.3,0.90699264]
[1763437014309,0.4783,2988.2,2985.2,4.01533023]
[1763437014522,0.4783,2988.2,2985.2,1.6377426]
[1763437015251,0.1881,2988.9,2986.3,3.543]
[1763437015428,0.1881,2988.9,2986.4,2.30702791]
[1763437015624,0.1881,2988.9,2986.4,1.40003527]
[1763437015821,0.4783,2988.8,2986.4,1.40003527]
[1763437016139,0.4783,2988.8,2986.0,0.405504]
[1763437016456,0.1881,2988.9,2986.2,4.44999264]
[1763437016612,0.1881,2989.2,2986.3,0.80797651]
[1763437016946,0.4783,2989.1,2986.3,0.80797651]
[1763437017165,0.4783,2989.1,2985.6,3.00903831]
[1763437017166,0.4783,2989.1,2985.6,2.85588763]
[1763437017308,0.4783,2989.1,2985.7,0.28558876]
[1763437017511,0.4783,2989.1,2985.6,0.40247251]
[1763437017712,0.4783,2989.1,2985.9,2.37758763]
[1763437017952,0.4783,2989.1,2986.1,1.31249664]
[1763437018158,0.4783,2989.1,2986.1,0.405504]
[1763437018316,0.4783,2989.1,2985.6,2.37758763]
[1763437018510,0.4783,2989.1,2985.7,0.23775876]
[1763437018725,0.4783,2989.1,2985.8,0.80797651]
[1763437019138,0.4783,2989.1,2986.0,0.405504]
[1763437019343,0.4783,2989.1,2986.2,0.405504]
[1763437019650,0.1881,2989.2,2986.4,0.405504]
[1763437019854,0.6664,2989.2,2986.6,0.405504]
[1763437020357,0.6664,2989.2,2986.3,0.405504]
[1763437020358,0.4783,2989.1,2986.3,0.405504]
[1763437020566,0.4783,2989.1,2986.2,0.405504]
[1763437020753,0.4783,2989.1,2986.4,0.80797651]
[1763437020971,0.4783,2989.1,2986.2,2.37758763]
[1763437020972,0.4783,2989.1,2985.7,0.23775876]
[1763437021324,0.1881,2989.4,2985.7,0.23775876]
[1763437021578,0.1881,2989.4,2986.1,3.543]
[1763437021767,0.1881,2989.4,2986.9,0.405504]
[1763437021972,0.1881,2989.4,2987.1,0.405504]
[1763437022123,0.1881,2989.8,2987.4,0.405504]
[1763437022324,0.56913496,2990.4,2987.8,0.405504]
[1763437022627,0.56913496,2990.4,2988.0,0.405504]
[1763437022628,0.09083496,2990.4,2988.0,0.405504]
[1763437022973,0.09083496,2990.4,2988.6,1.31249664]
[1763437023379,0.09083496,2990.4,2989.0,2.78309163]
[1763437023663,0.09083496,2990.4,2988.9,3.543]
[1763437023664,0.002,2991.7,2989.7,0.405504]
[1763437023865,0.002,2991.7,2989.9,1.31249664]
[1763437024066,0.002,2991.7,2990.1,0.405504]
[1763437024425,0.002,2992.3,2990.5,0.405504]
[1763437024736,0.002,2992.3,2991.0,0.405504]
[1763437024976,0.002,2992.3,2990.8,3.28458027]
[1763437024977,0.002,2992.3,2990.8,0.405504]
[1763437025273,0.4803,2992.3,2990.1,0.405504]
[1763437025640,0.4803,2992.3,2989.9,0.405504]
[1763437025641,0.002,2992.0,2989.9,0.405504]
[1763437025851,0.002,2992.0,2989.7,3.28458027]
[1763437026172,0.002,2992.0,2988.7,4.11204692]
[1763437026173,0.4752,2991.9,2987.7,2.37758763]
[1763437026370,0.4752,2991.9,2987.3,4.64678091]
[1763437026371,0.4752,2991.9,2987.8,2.61534639]
[1763437026671,0.4752,2991.9,2987.8,0.23775876]
[1763437026878,0.4752,2991.9,2988.1,2.37758763]
[1763437027026,0.4752,2991.9,2988.6,1.31249664]
[1763437027360,0.4752,2991.9,2988.5,2.37758763]
[1763437027361,0.4752,2991.9,2988.7,0.36900843]
[1763437027723,0.4752,2991.9,2987.9,3.00903831]
[1763437027724,0.04178086,2991.8,2988.2,2.37758763]
[1763437027928,0.4752,2991.9,2988.2,2.37758763]
[1763437028225,0.002,2992.0,2987.8,0.71295876]
[1763437028226,0.4752,2991.8,2988.4,0.405504]
[1763437028462,0.4752,2991.8,2989.2,0.405504]
[1763437028626,0.4752,2991.8,2989.4,0.405504]
[1763437029562,0.4752,2991.8,2989.6,0.405504]
[1763437030270,0.002,2992.0,2990.0,0.405504]
[1763437030425,0.002,2992.0,2990.0,3.69008427]
[1763437030629,0.002,2992.0,2990.5,0.405504]
[1763437030866,0.002,2992.0,2990.5,3.69008427]
[1763437031046,0.002,2992.0,2990.9,0.405504]
[1763437031384,0.002,2992.0,2990.9,3.69008427]
[1763437031677,0.002,2992.0,2991.1,0.405504]
[1763437031907,0.002,2992.0,2991.0,3.28458027]
[1763437031908,0.002,2992.0,2991.3,1.31249664]
[1763437032046,0.1881,2993.8,2991.5,0.405504]
[1763437032251,0.4752,2993.3,2991.7,0.405504]
[1763437032427,0.1881,2993.8,2991.4,0.405504]
[1763437032428,0.4752,2993.5,2991.4,0.405504]
[1763437032636,0.1881,2993.8,2991.4,0.405504]
[1763437032637,0.4752,2993.2,2991.4,0.405504]
[1763437032976,0.1881,2993.8,2991.3,0.405504]
[1763437033135,0.1881,2993.9,2991.6,0.405504]
[1763437033330,0.1881,2993.9,2991.8,0.405504]
[1763437033531,0.4752,2994.1,2992.2,0.405504]
[1763437033830,0.4752,2994.5,2992.2,0.405504]
[1763437034032,0.4752,2994.5,2992.4,0.405504]
[1763437034229,0.4752,2994.5,2992.2,2.37758763]
[1763437034230,0.4752,2994.5,2992.2,0.405504]
[1763437034452,0.4752,2994.5,2992.4,0.405504]
[1763437034651,0.4752,2994.5,2992.3,0.405504]
[1763437034868,0.4752,2994.5,2991.9,0.36900843]
[1763437035177,0.4752,2994.5,2992.0,0.405504]
[1763437035330,0.4752,2994.5,2992.4,0.405504]
[1763437035528,0.4752,2994.8,2992.6,0.405504]
[1763437035767,0.4752,2994.8,2992.8,3.69008427]
[1763437036073,0.4752,2994.8,2992.0,1.38219264]
[1763437036241,0.4752,2994.8,2991.9,0.36900843]
[1763437036447,0.4752,2994.8,2991.8,3.28458027]
[1763437036653,0.4752,2994.8,2991.4,3.00903831]
[1763437036654,0.4752,2994.8,2992.1,0.405504]
[1763437036849,0.4752,2994.8,2992.1,1.31249664]
[1763437037347,0.4752,2994.8,2991.9,2.37758763]